[Event "Titled Tuesday Blitz June 27 Early 2023"]
[White "Taspinar, Yanki"]
[Black "Pandey Srishti"]
[WhiteFideId "34561188"]
[BlackFideId "35093290"]
[WhiteElo "2657"]
[BlackElo "2435"]
[Result "1-0"]
[Round "4"]
[TimeControl "180+2"]
[Date "2023.06.27"]
[WhiteClock "0:00:05"]
[BlackClock "0:00:08"]
[Board "133"]

1. Nf3 {[%clk 0:01:24]}  Nf6 {[%clk 0:02:58]} 2. g3 {[%clk 0:01:24]}  g6 {[%clk 0:02:57]} 3. Bg2 {[%clk 0:01:24]}  Bg7 {[%clk 0:02:58]} 4. O-O {[%clk 0:01:24]}  O-O {[%clk 0:02:59]} 5. d4 {[%clk 0:01:25]}  d6 {[%clk 0:02:59]} 6. b3 {[%clk 0:01:25]}  Nbd7 {[%clk 0:02:51]} 7. Bb2 {[%clk 0:01:25]}  e5 {[%clk 0:02:52]} 8. dxe5 {[%clk 0:01:25]}  Ng4 {[%clk 0:02:51]} 9. Nbd2 {[%clk 0:01:26]}  Ngxe5 {[%clk 0:02:45]} 10. Nxe5 {[%clk 0:01:25]}  Nxe5 {[%clk 0:02:40]} 11. Qc1 {[%clk 0:01:19]}  d5 {[%clk 0:02:34]} 12. Nf3 {[%clk 0:01:15]}  Nxf3+ {[%clk 0:02:33]} 13. Bxf3 {[%clk 0:01:15]}  c6 {[%clk 0:02:31]} 14. Rd1 {[%clk 0:01:09]}  Qe7 {[%clk 0:02:20]} 15. Bxg7 {[%clk 0:01:05]}  Kxg7 {[%clk 0:02:19]} 16. c4 {[%clk 0:01:06]}  dxc4 {[%clk 0:02:17]} 17. Qxc4 {[%clk 0:01:06]}  Be6 {[%clk 0:02:15]} 18. Qc3+ {[%clk 0:01:04]}  Qf6 {[%clk 0:02:15]} 19. Qb4 {[%clk 0:01:04]}  b6 {[%clk 0:01:41]} 20. Bxc6 {[%clk 0:01:00]}  Bxb3 {[%clk 0:01:37]} 21. axb3 {[%clk 0:00:45]}  Qxc6 {[%clk 0:01:35]} 22. Rdc1 {[%clk 0:00:45]}  Qe6 {[%clk 0:01:30]} 23. e3 {[%clk 0:00:44]}  Rfd8 {[%clk 0:01:27]} 24. Rc7 {[%clk 0:00:42]}  Qe5 {[%clk 0:00:54]} 25. Raxa7 {[%clk 0:00:27]}  Rd1+ {[%clk 0:00:51]} 26. Kg2 {[%clk 0:00:27]}  Rxa7 {[%clk 0:00:47]} 27. Rxa7 {[%clk 0:00:28]}  Qd5+ {[%clk 0:00:47]} 28. e4 {[%clk 0:00:29]}  Qd3 {[%clk 0:00:47]} 29. Qc4 {[%clk 0:00:27]}  Qxc4 {[%clk 0:00:34]} 30. bxc4 {[%clk 0:00:28]}  Rc1 {[%clk 0:00:34]} 31. Rc7 {[%clk 0:00:28]}  b5 {[%clk 0:00:31]} 32. c5 {[%clk 0:00:27]}  b4 {[%clk 0:00:31]} 33. e5 {[%clk 0:00:27]}  b3 {[%clk 0:00:29]} 34. Rb7 {[%clk 0:00:16]}  Rxc5 {[%clk 0:00:27]} 35. e6 {[%clk 0:00:15]}  b2 {[%clk 0:00:20]} 36. Rxf7+ {[%clk 0:00:14]}  Kg8 {[%clk 0:00:20]} 37. Rb7 {[%clk 0:00:15]}  Rc2 {[%clk 0:00:20]} 38. Kf3 {[%clk 0:00:14]}  Kf8 {[%clk 0:00:19]} 39. h4 {[%clk 0:00:14]}  Ke8 {[%clk 0:00:19]} 40. Ke3 {[%clk 0:00:14]}  Kd8 {[%clk 0:00:17]} 41. f4 {[%clk 0:00:10]}  Rg2 {[%clk 0:00:16]} 42. Ke4 {[%clk 0:00:09]}  Ke8 {[%clk 0:00:16]} 43. Ke5 {[%clk 0:00:08]}  Rxg3 {[%clk 0:00:16]} 44. Kf6 {[%clk 0:00:06]}  Kd8 {[%clk 0:00:13]} 45. Rxb2 {[%clk 0:00:06]}  Re3 {[%clk 0:00:12]} 46. Rd2+ {[%clk 0:00:05]}  Kc7 {[%clk 0:00:12]} 47. Rd7+ {[%clk 0:00:06]}  Kc6 {[%clk 0:00:13]} 48. Rxh7 {[%clk 0:00:07]}  Re4 {[%clk 0:00:13]} 49. Rd7 {[%clk 0:00:04]}  Rxf4+ {[%clk 0:00:13]} 50. Kxg6 {[%clk 0:00:05]}  Rxh4 {[%clk 0:00:13]} 51. Rd1 {[%clk 0:00:04]}  Re4 {[%clk 0:00:13]} 52. Kf6 {[%clk 0:00:04]}  Rf4+ {[%clk 0:00:13]} 53. Ke7 {[%clk 0:00:05]}  Re4 {[%clk 0:00:13]} 54. Kf7 {[%clk 0:00:05]}  Rf4+ {[%clk 0:00:13]} 55. Ke8 {[%clk 0:00:05]}  Re4 {[%clk 0:00:13]} 56. e7 {[%clk 0:00:05]}  Kc7 {[%clk 0:00:14]} 57. Rc1+ {[%clk 0:00:04]}  Kd6 {[%clk 0:00:14]} 58. Kd8 {[%clk 0:00:04]}  Rxe7 {[%clk 0:00:09]} 59. Rd1+ {[%clk 0:00:04]}  Ke6 {[%clk 0:00:09]} 60. Re1+ {[%clk 0:00:04]}  Kf6 {[%clk 0:00:08]} 61. Rxe7 {[%clk 0:00:05]} 1-0


[Site "https://www.chess.com"]

[Event "Titled Tuesday Blitz June 27 Early 2023"]
[White "whiteglovethief"]
[Black "Ashraf, Artin"]
[BlackFideId "22514805"]
[WhiteElo "2435"]
[BlackElo "2651"]
[Result "1-0"]
[Round "4"]
[TimeControl "180+2"]
[Date "2023.06.27"]
[WhiteClock "0:00:09"]
[BlackClock "0:00:04"]
[Board "134"]

1. d4 {[%clk 0:03:00]}  Nf6 {[%clk 0:02:56]} 2. c4 {[%clk 0:03:01]}  d6 {[%clk 0:02:55]} 3. Nc3 {[%clk 0:03:00]}  e5 {[%clk 0:02:55]} 4. Nf3 {[%clk 0:02:57]}  Nbd7 {[%clk 0:02:49]} 5. g3 {[%clk 0:02:43]}  g6 {[%clk 0:02:43]} 6. Bg2 {[%clk 0:02:44]}  Bg7 {[%clk 0:02:44]} 7. O-O {[%clk 0:02:44]}  O-O {[%clk 0:02:44]} 8. h3 {[%clk 0:02:40]}  Re8 {[%clk 0:02:42]} 9. e4 {[%clk 0:02:39]}  exd4 {[%clk 0:02:32]} 10. Nxd4 {[%clk 0:02:39]}  Nc5 {[%clk 0:02:30]} 11. Re1 {[%clk 0:02:34]}  a5 {[%clk 0:02:28]} 12. b3 {[%clk 0:02:33]}  Nfd7 {[%clk 0:02:23]} 13. Be3 {[%clk 0:02:31]}  Ne5 {[%clk 0:02:19]} 14. Re2 {[%clk 0:02:19]}  Bd7 {[%clk 0:02:09]} 15. Rd2 {[%clk 0:02:18]}  h5 {[%clk 0:02:01]} 16. f4 {[%clk 0:02:15]}  Nc6 {[%clk 0:01:59]} 17. Rc1 {[%clk 0:02:11]}  Nxd4 {[%clk 0:01:46]} 18. Bxd4 {[%clk 0:02:11]}  Bxd4+ {[%clk 0:01:47]} 19. Rxd4 {[%clk 0:02:11]}  h4 {[%clk 0:01:48]} 20. g4 {[%clk 0:02:06]}  Ne6 {[%clk 0:01:47]} 21. f5 {[%clk 0:02:05]}  Nxd4 {[%clk 0:01:46]} 22. Qxd4 {[%clk 0:02:05]}  Re5 {[%clk 0:01:39]} 23. Nd5 {[%clk 0:02:01]}  Bc6 {[%clk 0:01:37]} 24. fxg6 {[%clk 0:01:47]}  fxg6 {[%clk 0:01:32]} 25. Nf4 {[%clk 0:01:43]}  Qg5 {[%clk 0:01:23]} 26. Nd3 {[%clk 0:01:39]}  Qd2 {[%clk 0:01:10]} 27. Rf1 {[%clk 0:01:20]}  Rf8 {[%clk 0:00:52]} 28. Rxf8+ {[%clk 0:01:11]}  Kxf8 {[%clk 0:00:52]} 29. Qf2+ {[%clk 0:01:11]}  Qxf2+ {[%clk 0:00:51]} 30. Kxf2 {[%clk 0:01:12]}  Re7 {[%clk 0:00:45]} 31. Ke3 {[%clk 0:01:12]}  Rf7 {[%clk 0:00:41]} 32. Nf4 {[%clk 0:01:11]}  Kg7 {[%clk 0:00:40]} 33. Bf3 {[%clk 0:01:04]}  Bd7 {[%clk 0:00:35]} 34. Ng2 {[%clk 0:01:02]}  Kf6 {[%clk 0:00:33]} 35. Nf4 {[%clk 0:00:53]}  c6 {[%clk 0:00:30]} 36. Nd3 {[%clk 0:00:46]}  Be6 {[%clk 0:00:26]} 37. Kf4 {[%clk 0:00:38]}  b5 {[%clk 0:00:24]} 38. c5 {[%clk 0:00:35]}  g5+ {[%clk 0:00:20]} 39. Ke3 {[%clk 0:00:35]}  d5 {[%clk 0:00:12]} 40. e5+ {[%clk 0:00:16]}  Ke7 {[%clk 0:00:12]} 41. Ne1 {[%clk 0:00:11]}  Rf4 {[%clk 0:00:09]} 42. Nc2 {[%clk 0:00:11]}  b4 {[%clk 0:00:05]} 43. Nd4 {[%clk 0:00:12]}  Bd7 {[%clk 0:00:06]} 44. Kd3 {[%clk 0:00:11]}  Rf8 {[%clk 0:00:06]} 45. Ke3 {[%clk 0:00:11]}  Be8 {[%clk 0:00:06]} 46. Be2 {[%clk 0:00:10]}  Rf4 {[%clk 0:00:04]} 47. Bd3 {[%clk 0:00:10]}  Bd7 {[%clk 0:00:04]} 48. Bf5 {[%clk 0:00:09]}  Bxf5 {[%clk 0:00:03]} 49. Nxf5+ {[%clk 0:00:09]}  Ke6 {[%clk 0:00:03]} 50. Nd4+ {[%clk 0:00:09]}  Kxe5 {[%clk 0:00:04]} 51. Nxc6+ {[%clk 0:00:10]}  Kf6 {[%clk 0:00:04]} 52. Nxa5 {[%clk 0:00:09]}  d4+ {[%clk 0:00:04]} 53. Kd3 {[%clk 0:00:09]}  Ke5 {[%clk 0:00:05]} 54. c6 {[%clk 0:00:06]}  Kd6 {[%clk 0:00:04]} 55. Kc4 {[%clk 0:00:05]}  Rf3 {[%clk 0:00:04]} 56. Kxd4 {[%clk 0:00:06]}  Rxh3 {[%clk 0:00:04]} 57. Kc4 {[%clk 0:00:06]}  Rg3 {[%clk 0:00:04]} 58. Kb5 {[%clk 0:00:07]}  h3 {[%clk 0:00:05]} 59. Kb6 {[%clk 0:00:07]}  h2 {[%clk 0:00:03]} 60. Nc4+ {[%clk 0:00:07]}  Kd5 {[%clk 0:00:02]} 61. c7 {[%clk 0:00:08]}  h1=Q {[%clk 0:00:03]} 62. c8=Q {[%clk 0:00:08]}  Qg1+ {[%clk 0:00:03]} 63. Kb5 {[%clk 0:00:09]}  Kd4 {[%clk 0:00:04]} 64. Qd7+ {[%clk 0:00:09]}  Kc3 {[%clk 0:00:04]} 65. Qd2# {[%clk 0:00:09]} 1-0


[Site "https://www.chess.com"]

[Event "Titled Tuesday Blitz June 27 Early 2023"]
[White "Titichoca Daza, Daniel"]
[Black "StiffMaster1"]
[WhiteFideId "3309550"]
[WhiteElo "2430"]
[BlackElo "2623"]
[Result "1-0"]
[Round "4"]
[TimeControl "180+2"]
[Date "2023.06.27"]
[WhiteClock "0:00:02"]
[BlackClock "0:00:00"]
[Board "136"]

1. Nf3 {[%clk 0:03:00]}  Nf6 {[%clk 0:02:46]} 2. b3 {[%clk 0:02:58]}  g6 {[%clk 0:02:46]} 3. Bb2 {[%clk 0:02:58]}  Bg7 {[%clk 0:02:46]} 4. g3 {[%clk 0:02:58]}  O-O {[%clk 0:02:47]} 5. Bg2 {[%clk 0:02:58]}  d6 {[%clk 0:02:47]} 6. d4 {[%clk 0:02:57]}  Nbd7 {[%clk 0:02:46]} 7. O-O {[%clk 0:02:58]}  c5 {[%clk 0:02:45]} 8. c4 {[%clk 0:02:57]}  cxd4 {[%clk 0:02:43]} 9. Nxd4 {[%clk 0:02:57]}  Nc5 {[%clk 0:02:37]} 10. Nc3 {[%clk 0:02:57]}  a6 {[%clk 0:02:10]} 11. a3 {[%clk 0:02:41]}  Ne6 {[%clk 0:02:08]} 12. Nc2 {[%clk 0:02:33]}  Nc7 {[%clk 0:01:56]} 13. e4 {[%clk 0:02:24]}  Bg4 {[%clk 0:01:52]} 14. Qd2 {[%clk 0:02:22]}  Qc8 {[%clk 0:01:47]} 15. Rfc1 {[%clk 0:02:15]}  Bh3 {[%clk 0:01:46]} 16. Bh1 {[%clk 0:02:15]}  h5 {[%clk 0:01:42]} 17. Ne3 {[%clk 0:02:11]}  h4 {[%clk 0:01:33]} 18. Ncd5 {[%clk 0:02:11]}  Ncxd5 {[%clk 0:01:25]} 19. cxd5 {[%clk 0:02:11]}  Qd7 {[%clk 0:01:23]} 20. Nc4 {[%clk 0:02:07]}  Qg4 {[%clk 0:01:14]} 21. f3 {[%clk 0:01:45]}  Qh5 {[%clk 0:01:11]} 22. g4 {[%clk 0:01:44]}  Nxg4 {[%clk 0:00:55]} 23. fxg4 {[%clk 0:01:42]}  Qxg4+ {[%clk 0:00:52]} 24. Bg2 {[%clk 0:01:36]}  Bxg2 {[%clk 0:00:44]} 25. Qxg2 {[%clk 0:01:35]}  Qh5 {[%clk 0:00:38]} 26. Bxg7 {[%clk 0:01:32]}  Kxg7 {[%clk 0:00:39]} 27. Rf1 {[%clk 0:01:29]}  Rac8 {[%clk 0:00:36]} 28. Rf2 {[%clk 0:01:23]}  b5 {[%clk 0:00:36]} 29. Ne3 {[%clk 0:01:22]}  Rc3 {[%clk 0:00:36]} 30. Nf5+ {[%clk 0:01:04]}  Kh7 {[%clk 0:00:36]} 31. Nd4 {[%clk 0:00:58]}  h3 {[%clk 0:00:32]} 32. Qf1 {[%clk 0:00:55]}  Kg8 {[%clk 0:00:25]} 33. Re1 {[%clk 0:00:46]}  Qe5 {[%clk 0:00:17]} 34. Ne6 {[%clk 0:00:38]}  Rfc8 {[%clk 0:00:11]} 35. Rxf7 {[%clk 0:00:38]}  Rg3+ {[%clk 0:00:05]} 36. Kh1 {[%clk 0:00:37]}  Rg2 {[%clk 0:00:03]} 37. Rf8+ {[%clk 0:00:27]}  Kh7 {[%clk 0:00:03]} 38. Rf7+ {[%clk 0:00:13]}  Kh6 {[%clk 0:00:04]} 39. Qf4+ {[%clk 0:00:11]}  Qxf4 {[%clk 0:00:04]} 40. Nxf4 {[%clk 0:00:11]}  Rf2 {[%clk 0:00:03]} 41. Rg1 {[%clk 0:00:03]}  g5 {[%clk 0:00:00]} 42. Rxe7 {[%clk 0:00:02]} 1-0


[Site "https://www.chess.com"]

[Event "Titled Tuesday Blitz June 27 Early 2023"]
[White "Rom, Jasper"]
[Black "infinitypoint"]
[WhiteFideId "2023733"]
[WhiteElo "2430"]
[BlackElo "2603"]
[Result "0-1"]
[Round "4"]
[TimeControl "180+2"]
[Date "2023.06.27"]
[WhiteClock "0:00:00"]
[BlackClock "0:00:31"]
[Board "138"]

1. e4 {[%clk 0:03:00]}  e5 {[%clk 0:02:59]} 2. Nf3 {[%clk 0:03:00]}  Nf6 {[%clk 0:02:59]} 3. Nxe5 {[%clk 0:02:59]}  Nxe4 {[%clk 0:03:00]} 4. Qe2 {[%clk 0:02:58]}  Qe7 {[%clk 0:03:00]} 5. Qxe4 {[%clk 0:02:57]}  d6 {[%clk 0:03:01]} 6. d4 {[%clk 0:02:57]}  dxe5 {[%clk 0:03:01]} 7. Qxe5 {[%clk 0:02:53]}  Qxe5+ {[%clk 0:03:01]} 8. dxe5 {[%clk 0:02:54]}  Nc6 {[%clk 0:03:02]} 9. f4 {[%clk 0:02:52]}  Bf5 {[%clk 0:02:59]} 10. c3 {[%clk 0:02:51]}  Bc5 {[%clk 0:02:57]} 11. Nd2 {[%clk 0:02:40]}  O-O-O {[%clk 0:02:56]} 12. Nb3 {[%clk 0:02:40]}  Bb6 {[%clk 0:02:56]} 13. Bb5 {[%clk 0:02:33]}  f6 {[%clk 0:02:48]} 14. a4 {[%clk 0:02:29]}  a5 {[%clk 0:02:43]} 15. Bxc6 {[%clk 0:02:04]}  bxc6 {[%clk 0:02:43]} 16. Nd4 {[%clk 0:02:02]}  Be4 {[%clk 0:02:36]} 17. exf6 {[%clk 0:01:50]}  gxf6 {[%clk 0:02:33]} 18. Be3 {[%clk 0:01:34]}  Rhg8 {[%clk 0:02:29]} 19. Rg1 {[%clk 0:01:31]}  Bxg2 {[%clk 0:02:12]} 20. Kf2 {[%clk 0:01:25]}  Be4 {[%clk 0:02:12]} 21. Rg3 {[%clk 0:01:08]}  Rxg3 {[%clk 0:01:42]} 22. hxg3 {[%clk 0:01:05]}  Rg8 {[%clk 0:01:41]} 23. Rg1 {[%clk 0:00:41]}  h5 {[%clk 0:01:33]} 24. Nf3 {[%clk 0:00:29]}  Bd5 {[%clk 0:01:08]} 25. Nd4 {[%clk 0:00:21]}  Rg4 {[%clk 0:00:57]} 26. Nf3 {[%clk 0:00:13]}  Kd7 {[%clk 0:00:41]} 27. Rd1 {[%clk 0:00:12]}  Bxe3+ {[%clk 0:00:40]} 28. Kxe3 {[%clk 0:00:10]}  Rxg3 {[%clk 0:00:41]} 29. c4 {[%clk 0:00:08]}  Rxf3+ {[%clk 0:00:41]} 30. Ke2 {[%clk 0:00:08]}  Rxf4 {[%clk 0:00:38]} 31. cxd5 {[%clk 0:00:08]}  Rxa4 {[%clk 0:00:38]} 32. dxc6+ {[%clk 0:00:08]}  Kxc6 {[%clk 0:00:39]} 33. Kd3 {[%clk 0:00:05]}  Rf4 {[%clk 0:00:37]} 34. Kc3 {[%clk 0:00:04]}  h4 {[%clk 0:00:37]} 35. Rd8 {[%clk 0:00:02]}  h3 {[%clk 0:00:36]} 36. Rh8 {[%clk 0:00:02]}  Rf3+ {[%clk 0:00:36]} 37. Kc4 {[%clk 0:00:03]}  f5 {[%clk 0:00:34]} 38. b3 {[%clk 0:00:03]}  f4 {[%clk 0:00:33]} 39. Rh6+ {[%clk 0:00:03]}  Kb7 {[%clk 0:00:33]} 40. Rh4 {[%clk 0:00:02]}  Rg3 {[%clk 0:00:30]} 41. Rxf4 {[%clk 0:00:01]}  h2 {[%clk 0:00:31]} 42. Rh4 {[%clk 0:00:00]}  Rg4+ {[%clk 0:00:31]} 0-1


[Site "https://www.chess.com"]

[Event "Titled Tuesday Blitz June 27 Early 2023"]
[White "Komov, Roman"]
[Black "Large, Peter G"]
[WhiteFideId "24175714"]
[BlackFideId "400866"]
[WhiteElo "2602"]
[BlackElo "2422"]
[Result "1-0"]
[Round "4"]
[TimeControl "180+2"]
[Date "2023.06.27"]
[WhiteClock "0:01:35"]
[BlackClock "0:00:00"]
[Board "139"]

1. e4 {[%clk 0:02:59]}  Nc6 {[%clk 0:02:56]} 2. Nc3 {[%clk 0:02:59]}  d6 {[%clk 0:02:52]} 3. d4 {[%clk 0:02:58]}  e5 {[%clk 0:02:29]} 4. Nf3 {[%clk 0:02:57]}  exd4 {[%clk 0:02:26]} 5. Nxd4 {[%clk 0:02:58]}  Nf6 {[%clk 0:02:25]} 6. Bc4 {[%clk 0:02:56]}  Be7 {[%clk 0:02:03]} 7. O-O {[%clk 0:02:54]}  O-O {[%clk 0:02:03]} 8. h3 {[%clk 0:02:54]}  Re8 {[%clk 0:01:59]} 9. Re1 {[%clk 0:02:53]}  Bf8 {[%clk 0:01:41]} 10. Bg5 {[%clk 0:02:52]}  h6 {[%clk 0:01:40]} 11. Bh4 {[%clk 0:02:51]}  Ne5 {[%clk 0:01:40]} 12. Bb3 {[%clk 0:02:50]}  Ng6 {[%clk 0:01:39]} 13. Bg3 {[%clk 0:02:48]}  Bd7 {[%clk 0:01:21]} 14. Qd2 {[%clk 0:02:44]}  a6 {[%clk 0:01:07]} 15. Rad1 {[%clk 0:02:38]}  c5 {[%clk 0:01:01]} 16. Nf5 {[%clk 0:02:37]}  b5 {[%clk 0:00:35]} 17. Nxd6 {[%clk 0:02:30]}  Bxd6 {[%clk 0:00:34]} 18. Qxd6 {[%clk 0:02:29]}  c4 {[%clk 0:00:31]} 19. e5 {[%clk 0:02:29]}  cxb3 {[%clk 0:00:12]} 20. axb3 {[%clk 0:02:24]}  Bf5 {[%clk 0:00:11]} 21. Qxd8 {[%clk 0:02:11]}  Raxd8 {[%clk 0:00:10]} 22. exf6 {[%clk 0:02:11]}  Bxc2 {[%clk 0:00:10]} 23. Rxd8 {[%clk 0:02:08]}  Rxd8 {[%clk 0:00:10]} 24. fxg7 {[%clk 0:02:09]}  Bxb3 {[%clk 0:00:09]} 25. Ra1 {[%clk 0:02:06]}  b4 {[%clk 0:00:08]} 26. Ne4 {[%clk 0:01:52]}  Rd1+ {[%clk 0:00:08]} 27. Rxd1 {[%clk 0:01:52]}  Bxd1 {[%clk 0:00:09]} 28. Bc7 {[%clk 0:01:42]}  Kxg7 {[%clk 0:00:07]} 29. Ba5 {[%clk 0:01:39]}  b3 {[%clk 0:00:06]} 30. Bc3+ {[%clk 0:01:37]}  Kf8 {[%clk 0:00:05]} 31. Nc5 {[%clk 0:01:38]}  Be2 {[%clk 0:00:04]} 32. Nxb3 {[%clk 0:01:37]}  Ke7 {[%clk 0:00:04]} 33. f3 {[%clk 0:01:38]}  Bc4 {[%clk 0:00:03]} 34. Nd4 {[%clk 0:01:37]}  Bd5 {[%clk 0:00:03]} 35. Nf5+ {[%clk 0:01:36]}  Ke6 {[%clk 0:00:01]} 36. Nxh6 {[%clk 0:01:37]}  Nf4 {[%clk 0:00:01]} 37. Kf2 {[%clk 0:01:36]}  f5 {[%clk 0:00:00]} 38. g4 {[%clk 0:01:35]} 1-0


[Site "https://www.chess.com"]

[Event "Titled Tuesday Blitz June 27 Early 2023"]
[White "Yurovskykh, Oleksandr"]
[Black "Omariev, Maksim"]
[WhiteFideId "14134020"]
[BlackFideId "4193423"]
[WhiteElo "2596"]
[BlackElo "2418"]
[Result "0-1"]
[Round "4"]
[TimeControl "180+2"]
[Date "2023.06.27"]
[WhiteClock "0:00:02"]
[BlackClock "0:00:06"]
[Board "141"]

1. b3 {[%clk 0:02:56]}  d5 {[%clk 0:02:54]} 2. Nf3 {[%clk 0:02:55]}  c5 {[%clk 0:02:52]} 3. e3 {[%clk 0:02:55]}  a6 {[%clk 0:02:52]} 4. Bb2 {[%clk 0:02:52]}  Nc6 {[%clk 0:02:53]} 5. d4 {[%clk 0:02:52]}  Nf6 {[%clk 0:02:51]} 6. c4 {[%clk 0:02:47]}  e6 {[%clk 0:02:49]} 7. Nc3 {[%clk 0:02:46]}  cxd4 {[%clk 0:02:47]} 8. Nxd4 {[%clk 0:02:46]}  Nxd4 {[%clk 0:02:22]} 9. Qxd4 {[%clk 0:02:47]}  dxc4 {[%clk 0:02:23]} 10. Qxd8+ {[%clk 0:02:34]}  Kxd8 {[%clk 0:02:24]} 11. Bxc4 {[%clk 0:02:34]}  b5 {[%clk 0:02:25]} 12. Be2 {[%clk 0:02:32]}  Bb7 {[%clk 0:02:25]} 13. f3 {[%clk 0:02:28]}  Bc5 {[%clk 0:02:21]} 14. e4 {[%clk 0:02:19]}  Ke7 {[%clk 0:02:18]} 15. a4 {[%clk 0:02:13]}  b4 {[%clk 0:02:14]} 16. Nb1 {[%clk 0:02:12]}  Rhd8 {[%clk 0:02:07]} 17. Nd2 {[%clk 0:02:11]}  Rd7 {[%clk 0:01:40]} 18. Nc4 {[%clk 0:02:07]}  Rad8 {[%clk 0:01:37]} 19. Rd1 {[%clk 0:02:06]}  Ne8 {[%clk 0:01:12]} 20. Rxd7+ {[%clk 0:01:58]}  Rxd7 {[%clk 0:01:13]} 21. Ne5 {[%clk 0:01:56]}  Rd8 {[%clk 0:01:09]} 22. Nd3 {[%clk 0:01:56]}  Kd6 {[%clk 0:01:02]} 23. Be5+ {[%clk 0:01:15]}  Kc6 {[%clk 0:01:00]} 24. Nxc5 {[%clk 0:00:53]}  Kxc5 {[%clk 0:01:00]} 25. Kf2 {[%clk 0:00:53]}  a5 {[%clk 0:00:26]} 26. Rc1+ {[%clk 0:00:46]}  Kb6 {[%clk 0:00:26]} 27. Ke3 {[%clk 0:00:40]}  Ba6 {[%clk 0:00:20]} 28. Bd4+ {[%clk 0:00:35]}  Rxd4 {[%clk 0:00:17]} 29. Bxa6 {[%clk 0:00:18]}  Rd8 {[%clk 0:00:04]} 30. Bc4 {[%clk 0:00:08]}  Nd6 {[%clk 0:00:04]} 31. e5 {[%clk 0:00:02]}  Nf5+ {[%clk 0:00:04]} 32. Ke2 {[%clk 0:00:03]}  Nd4+ {[%clk 0:00:04]} 33. Ke3 {[%clk 0:00:03]}  Nf5+ {[%clk 0:00:03]} 34. Ke2 {[%clk 0:00:04]}  g5 {[%clk 0:00:04]} 35. g3 {[%clk 0:00:04]}  h5 {[%clk 0:00:04]} 36. Bd3 {[%clk 0:00:04]}  Nd4+ {[%clk 0:00:04]} 37. Ke3 {[%clk 0:00:04]}  Nxb3 {[%clk 0:00:04]} 38. Rb1 {[%clk 0:00:03]}  Nc5 {[%clk 0:00:04]} 39. Bc2 {[%clk 0:00:03]}  Rd5 {[%clk 0:00:03]} 40. f4 {[%clk 0:00:03]}  h4 {[%clk 0:00:02]} 41. gxh4 {[%clk 0:00:02]}  gxf4+ {[%clk 0:00:02]} 42. Kxf4 {[%clk 0:00:03]}  Rd4+ {[%clk 0:00:02]} 43. Ke3 {[%clk 0:00:03]}  Rxh4 {[%clk 0:00:02]} 44. Rh1 {[%clk 0:00:04]}  Nd7 {[%clk 0:00:02]} 45. Rf1 {[%clk 0:00:03]}  Nxe5 {[%clk 0:00:02]} 46. Be4 {[%clk 0:00:02]}  f5 {[%clk 0:00:02]} 47. Bb1 {[%clk 0:00:01]}  Ng4+ {[%clk 0:00:02]} 48. Kf4 {[%clk 0:00:01]}  Nxh2+ {[%clk 0:00:03]} 49. Kg3 {[%clk 0:00:02]}  Nxf1+ {[%clk 0:00:03]} 50. Kxh4 {[%clk 0:00:02]}  Nd2 {[%clk 0:00:04]} 51. Bc2 {[%clk 0:00:02]}  b3 {[%clk 0:00:05]} 52. Bd3 {[%clk 0:00:02]}  b2 {[%clk 0:00:05]} 53. Kg5 {[%clk 0:00:02]}  b1=Q {[%clk 0:00:06]} 0-1


[Site "https://www.chess.com"]

[Event "Titled Tuesday Blitz June 27 Early 2023"]
[White "Mohamed Anees M"]
[Black "Ai, Evan"]
[WhiteFideId "35065815"]
[BlackFideId "2094770"]
[WhiteElo "2595"]
[BlackElo "2413"]
[Result "1-0"]
[Round "4"]
[TimeControl "180+2"]
[Date "2023.06.27"]
[WhiteClock "0:00:20"]
[BlackClock "0:00:14"]
[Board "142"]

1. c4 {[%clk 0:01:26]}  e5 {[%clk 0:02:52]} 2. Nc3 {[%clk 0:01:26]}  Bb4 {[%clk 0:02:52]} 3. Nf3 {[%clk 0:01:26]}  Nc6 {[%clk 0:02:51]} 4. g3 {[%clk 0:01:25]}  Nf6 {[%clk 0:02:51]} 5. Bg2 {[%clk 0:01:25]}  O-O {[%clk 0:02:50]} 6. O-O {[%clk 0:01:25]}  Re8 {[%clk 0:02:46]} 7. Nd5 {[%clk 0:01:25]}  Bc5 {[%clk 0:02:44]} 8. d3 {[%clk 0:01:25]}  d6 {[%clk 0:02:44]} 9. a3 {[%clk 0:01:25]}  Nxd5 {[%clk 0:02:44]} 10. cxd5 {[%clk 0:01:25]}  Ne7 {[%clk 0:02:44]} 11. b4 {[%clk 0:01:25]}  Bb6 {[%clk 0:02:44]} 12. Qb3 {[%clk 0:01:24]}  h6 {[%clk 0:02:41]} 13. Bb2 {[%clk 0:01:25]}  c6 {[%clk 0:02:40]} 14. dxc6 {[%clk 0:01:24]}  bxc6 {[%clk 0:02:41]} 15. e4 {[%clk 0:01:23]}  Be6 {[%clk 0:02:40]} 16. Qc2 {[%clk 0:01:23]}  Qd7 {[%clk 0:02:37]} 17. d4 {[%clk 0:01:24]}  exd4 {[%clk 0:02:30]} 18. Nxd4 {[%clk 0:01:25]}  Rac8 {[%clk 0:02:27]} 19. Nxe6 {[%clk 0:01:24]}  Qxe6 {[%clk 0:02:27]} 20. Rad1 {[%clk 0:01:23]}  d5 {[%clk 0:02:20]} 21. exd5 {[%clk 0:01:15]}  Nxd5 {[%clk 0:02:20]} 22. Qb3 {[%clk 0:01:16]}  Red8 {[%clk 0:02:13]} 23. Rfe1 {[%clk 0:01:09]}  Qf5 {[%clk 0:02:08]} 24. Qf3 {[%clk 0:01:10]}  Qc2 {[%clk 0:01:59]} 25. Ba1 {[%clk 0:01:09]}  Re8 {[%clk 0:01:36]} 26. Rc1 {[%clk 0:01:02]}  Qd2 {[%clk 0:01:30]} 27. Red1 {[%clk 0:00:53]}  Qa2 {[%clk 0:01:23]} 28. Bf1 {[%clk 0:00:44]}  Ne3 {[%clk 0:01:07]} 29. Rd7 {[%clk 0:00:33]}  Ng4 {[%clk 0:00:55]} 30. Bc4 {[%clk 0:00:23]}  Qxf2+ {[%clk 0:00:32]} 31. Qxf2 {[%clk 0:00:21]}  Bxf2+ {[%clk 0:00:33]} 32. Kg2 {[%clk 0:00:22]}  Red8 {[%clk 0:00:18]} 33. Rxf7 {[%clk 0:00:20]}  Rd2 {[%clk 0:00:18]} 34. Rxf2+ {[%clk 0:00:20]}  Kh8 {[%clk 0:00:14]} 35. Rxd2 {[%clk 0:00:20]} 1-0


[Site "https://www.chess.com"]